[Event "US Masters 2022"]
[Site "Charlotte"]
[Date "2022.11.26"]
[Round "5.4"]
[White "Cruz, Cristhian"]
[Black "Beradze, Irakli"]
[Result "1/2-1/2"]
[ECO "D46"]
[WhiteElo "2552"]
[BlackElo "2494"]
[Annotator "TA"]
[PlyCount "67"]
[EventDate "2022.11.23"]
[EventType "swiss"]
[EventCountry "USA"]
[SourceTitle "playchess.com"]
[Source "ChessBase"]
[SourceQuality "1"]
[TimeControl "5400+30"]

{[%evp 21,67,0,0,5,28,29,37,20,20,13,18,18,18,15,16,2,12,0,0,0,0,0,0,0,0,0,0,0,0,0,0,0,0,0,0,0,0,0,0,0,0,0,0,0,0,0,0,0]} 1. c4 {[%emt 0:05:36]} e6 {[%emt 0:00:43]} 2. d4 {[%emt 0:01:50]} d5 {[%emt 0:00:30]} 3. Nc3 {[%emt 0:00:30]} c6 {[%emt 0:00:07]} 4. e3 {[%emt 0:00:21]} Nf6 {[%emt 0:00:40]} 5. Nf3 {[%emt 0:00:57]} Nbd7 {[%emt 0:00:08]} 6. Qc2 {[%emt 0:00:59]} Bd6 {[%emt 0:00:07]} 7. Bd3 {[%emt 0:02:04]} O-O {[%emt 0:00:09]} 8. O-O {[%emt 0:02:15]} dxc4 {[%emt 0:00:05]} 9. Bxc4 {[%emt 0:00:09]} b5 {[%emt 0:00:03]} 10. Bd3 {[%emt 0:01:26]} Bb7 {[%emt 0:00:06]} 11. a3 {[%emt 0:02:29]} a6 {[%emt 0:00:08] 11...Rc8 is a critical line.} 12. Ng5 {[%emt 0:04:44][%cal Rd3h7] D46: Semi-Slav: 5 e3 Nbd7 6 Bd3, Black avoids the Meran.} h6 {[%emt 0:04:44]} (12... Bxh2+ {with more complications.} 13. Kxh2 Ng4+ 14. Kg1 Qxg5 15. f3 Ngf6) 13. Nge4 {[%emt 0:00:55]} Be7 {[%emt 0:00:06]} 14. Nxf6+ {[%emt 0:03:45] White is slightly better.} Nxf6 {[%emt 0:02:41] The position is equal.} 15. Ne4 {[%emt 0:02:35] Prevents c5.} Nxe4 {[%emt 0:02:47]} 16. Bxe4 {[%emt 0:00:06]} a5 {[%emt 0:01:52]} 17. Bd2 {[%emt 0:03:23]} (17. Bxc6 $2 Rc8 18. Bd2 Rxc6 $19) 17... b4 {[%emt 0:00:11] [#]} 18. Rfc1 $146 {[%emt 0:17:39]} (18. Bxc6 $2 Rc8 19. d5 exd5 20. axb4 Rxc6 $19) ({Predecessor:} 18. f4 Qb6 19. f5 exf5 20. Rxf5 g6 21. Rff1 Kg7 22. Bf3 Rac8 23. Kh1 Bd6 24. axb4 axb4 {½-½ (40) Krumm,G (1819)-Schmidt,J (1903) GER email 2018}) 18... Qb6 {[%emt 0:00:44]} 19. Qa4 {[%emt 0:03:22][%cal Re4c6]} (19. Bxc6 $2 Rfc8 20. Qa4 (20. d5 $2 exd5 21. Qd3 Bxc6 $19) 20... Bxc6 $19) 19... Rfc8 {[%emt 0:04:33]} 20. Rc2 {[%emt 0:02:53]} c5 {[%emt 0:07:04]} 21. Bxb7 {[%emt 0:04:48]} Qxb7 {[%emt 0:00:33]} 22. dxc5 {[%emt 0:00:30]} Bxc5 {[%emt 0:00:05]} 23. Rac1 {[%emt 0:08:22]} Bf8 {[%emt 0:00:31]} 24. Rxc8 {[%emt 0:05:58]} Rxc8 {[%emt 0:00:11]} 25. Rxc8 {[%emt 0:00:08]} (25. Qxa5 $2 {loses.} Rxc1+ 26. Bxc1 Qc8 $19) 25... Qxc8 $11 {[%emt 0:00:03][%mdl 4096] Endgame KQB-KQB} 26. Kf1 {[%emt 0:05:55]} (26. Qxa5 $2 {perishes.} Qc2 27. Bxb4 (27. Be1 $2 Qd1 $19) 27... Bxb4 28. Qa8+ Kh7 $19) 26... Qc4+ {[%emt 0:08:11]} 27. Ke1 {[%emt 0:00:08]} Qd5 {[%emt 0:01:26]} 28. g3 {[%emt 0:03:20]} Qf5 {[%emt 0:08:04] [#] Threatens to win with ...Qb1+.} 29. Ke2 {[%emt 0:03:52]} Qh5+ {[%emt 0:01:55]} 30. Ke1 {[%emt 0:00:07]} Qf5 {[%emt 0:01:29] aiming for ...Qb1+.} 31. Ke2 {[%emt 0:00:12]} bxa3 {[%emt 0:00:17]} 32. bxa3 {[%emt 0:00:06]} Qc5 {[%emt 0:00:03]} 33. Qxa5 {[%emt 0:00:18]} Qxa5 {[%emt 0:00:05]} 34. Bxa5 {[%emt 0:00:06] Weighted Error Value: White=0.02 (flawless) /Black=0.02 (flawless)} 1/2-1/2

[Event "US Masters 2022"]
[Site "Charlotte"]
[Date "2022.11.26"]
[Round "5.5"]
[White "Grinberg, Eyal"]
[Black "Macieja, Bartlomiej"]
[Result "1/2-1/2"]
[ECO "B84"]
[WhiteElo "2491"]
[BlackElo "2514"]
[Annotator "TA"]
[PlyCount "116"]
[EventDate "2022.11.23"]
[EventType "swiss"]
[EventCountry "USA"]
[SourceTitle "playchess.com"]
[Source "ChessBase"]
[SourceQuality "1"]
[TimeControl "5400+30"]

{[%evp 24,116,-13,-19,-13,-11,-14,-26,-17,-18,0,0,10,10,25,22,64,63,77,24,22,35,31,29,29,29,30,0,37,41,318,167,180,29,41,38,49,53,42,8,9,0,0,0,0,0,0,0,0,0,0,-7,-10,-10,-12,-20,-20,-21,-23,-62,-12,-10,-8,-15,-16,-12,0,-8,-8,-8,-8,-8,-8,-8,-8,-8,-8,-9,0,-114,0,-9,0,0,0,0,0,0,0,0,0,0,0,0,0]} 1. e4 {[%emt 0:08:59] ChessBase II} c5 {[%emt 0:00:03]} 2. Nf3 {[%emt 0:00:04]} d6 {[%emt 0:00:04]} 3. d4 {[%emt 0:00:05]} cxd4 {[%emt 0:00:03]} 4. Nxd4 {[%emt 0:00:03]} Nf6 {[%emt 0:00:04]} 5. Nc3 {[%emt 0:00:05]} a6 {[%emt 0:00:03]} 6. Be2 {[%emt 0:01:14]} e6 {[%emt 0:00:04]} 7. O-O {[%emt 0:05:43]} Be7 {[%emt 0:00:02]} 8. f4 {[%emt 0:00:35]} O-O {[%emt 0:00:05]} 9. Kh1 {[%emt 0:00:10]} Qc7 {[%emt 0:00:14]} 10. Qe1 {[%emt 0:01:38]} b5 {[%emt 0:01:17]} 11. a3 {[%emt 0:07:19]} Bb7 {[%emt 0:00:44]} 12. Bf3 {[%emt 0:00:28]} Nc6 {[%emt 0:23:45]} 13. Be3 {[%emt 0:03:50]} Na5 {[%emt 0:11:08] B84: Sicilian Scheveningen: 6 Be2 a6, lines without early Be3.} 14. Rd1 {[%emt 0:06:16]} Rac8 {[%emt 0:02:06]} 15. Bc1 {[%emt 0:06:08]} Rfe8 {[%emt 0:09:15] [#] Black has an edge.} 16. Qg3 $146 {[%emt 0:14:21]} ({Predecessor:} 16. f5 e5 17. Nde2 Nc4 18. b3 Nb6 19. Qg3 Bf8 20. Qh4 Qd8 21. g4 d5 22. g5 dxe4 23. Nxe4 {1-0 (51) Marcinkiewicz,A (2370)-Jardorf,S (2484) ICCF email 2000 Corr 2008 [ChessBase II]}) 16... Bf8 {[%emt 0:05:24]} 17. e5 {[%emt 0:11:44]} dxe5 {[%emt 0:21:45]} 18. fxe5 {[%emt 0:00:21]} Nd7 {[%emt 0:00:01]} 19. Bxb7 {[%emt 0:02:12]} Qxb7 {[%emt 0:00:02]} 20. Nf3 {[%emt 0:04:05] White is more active.} Nc4 {[%emt 0:06:33]} 21. Rd4 {[%emt 0:03:35]} (21. Rde1 $16) 21... f5 $1 $11 {[%emt 0:05:38][%cal Oc4a3] Prevents Ne4.} 22. exf6 {[%emt 0:02:01]} Nxf6 {[%emt 0:13:10]} 23. Ng5 {[%emt 0:03:10][%cal Of1f6] aiming for Rxf6!} e5 {[%emt 0:00:00]} 24. Rh4 {[%emt 0:02:12][%cal Og5h7] Hoping for Nxh7!} Rc6 $1 {[%emt 0:00:00]} 25. Nce4 {[%emt 0:05:47]} Nxe4 {[%emt 0:00:00]} (25... h6 $2 26. Nxf6+ Rxf6 27. Rxf6 $18) (25... Qd7 $5) 26. Nxe4 {[%emt 0:00:24] And now Qd3 would win.} Be7 $2 {[%emt 0:00:00][%mdl 8192] [#]} (26... Qd7 $1 $14) 27. Rg4 {[%emt 0:01:15]} (27. Rxh7 $142 $3 {[%mdl 512]} Kxh7 28. Rf7) 27... Bd8 {[%emt 0:00:00]} 28. b3 $2 {[%emt 0:01:41]} (28. Qd3 $1 $18) 28... Nd6 {[%emt 0:00:00]} 29. Bh6 {[%emt 0:04:33][%cal Rg4g7]} (29. Qf3 Nxe4 30. Qxe4 Rf6 $1 $11) 29... Nf5 {[%emt 0:00:00]} 30. Rxf5 {[%emt 0:00:55][%cal Rg4g7]} Rxh6 {[%emt 0:00:00]} 31. Qd3 {[%emt 0:03:28]} Qc8 $132 {[%emt 0:01:08][%mdl 2048] Black is fighting back} 32. Qd5+ {[%emt 0:01:21]} (32. Nd6 $2 {[#]} Rxd6 $1 {[%mdl 512]} 33. Qxd6 Qxf5 $19) 32... Qe6 $1 {[%emt 0:02:24]} 33. c4 {[%emt 0:00:27] Chess con chili.} (33. Qb7 $2 Re7 $19) 33... bxc4 {[%emt 0:00:24]} 34. bxc4 {[%emt 0:00:02][%cal Bb3c4,Bc4c5][%mdl 32]} ({Avoid the trap} 34. Qb7 $2 Re7 35. Qb8 Rd7 $19) 34... Kh8 {[%emt 0:00:59]} 35. Qxe6 {[%emt 0:00:59]} ({Much worse is} 35. Qb7 Be7 36. Rf1 Qxg4 $17) 35... Rhxe6 {[%emt 0:00:02]} 36. Rf7 {[%emt 0:00:13]} g6 {[%emt 0:01:12]} 37. c5 {[%emt 0:00:33]} Be7 {[%emt 0:00:21]} 38. Rg3 {[%emt 0:00:40]} Rd8 {[%emt 0:00:58] ( -> ...Rd1+)} 39. Rf1 {[%emt 0:00:40] Inhibits Rd1.} Rd4 {[%emt 0:00:27]} 40. Re3 {[%emt 0:00:33]} Rc4 {[%emt 0:00:15]} 41. g3 {[%emt 0:00:34]} Bxc5 {[%emt 0:00:46]} (41... Kg7 $15) 42. Nxc5 {[%emt 0:00:26]} Rxc5 $15 {[%emt 0:00:01][%mdl 4096] Endgame KRR-KRR} 43. Rf7 $1 {[%emt 0:00:10]} Kg8 {[%emt 0:00:31]} 44. Ra7 {[%emt 0:00:24]} Rec6 {[%emt 0:00:59]} 45. Rd3 {[%emt 0:00:32][%cal Rd3d8]} Rc7 {[%emt 0:00:11]} 46. Rxa6 {[%emt 0:00:08]} Rc2 {[%emt 0:00:07] Strongly threatening ...Re2.} 47. Rad6 {[%emt 0:00:34]} Kf7 {[%emt 0:00:36]} 48. Rd7+ {[%emt 0:00:08]} Ke6 {[%emt 0:00:34]} 49. Rxc7 {[%emt 0:00:13]} Rxc7 $11 {[%emt 0:00:30] KR-KR} 50. Rd1 $1 {[%emt 0:00:30]} Rc2 51. Rd3 {[%emt 0:02:32]} (51. Ra1 $11) 51... Rc7 {[%emt 0:00:32]} ({Black should play} 51... e4 $17 52. Rb3 Kd5) 52. Rd1 {[%emt 0:00:00] The position is equal.} Rc2 {[%emt 0:01:15]} 53. Ra1 {[%emt 0:00:00] Prevents Ra2.} e4 {[%emt 0:00:41]} 54. a4 {[%emt 0:01:30]} e3 {[%emt 0:00:09]} 55. Kg1 {[%emt 0:00:00]} Kd6 {[%emt 0:00:54]} 56. a5 {[%emt 0:00:00] Threatens to win with a6.} Rd2 {[%emt 0:00:25]} 57. Re1 {[%emt 0:00:06]} (57. a6 $5 e2 $8 58. Re1 $11 (58. Kf2 $2 Rd1 $19)) 57... Ra2 {[%emt 0:00:12]} 58. Rxe3 {[%emt 0:00:17]} Rxa5 {[%emt 0:00:33] Weighted Error Value: White=0.17 (very precise) /Black=0.15 (very precise)} 1/2-1/2

[Event "US Masters 2022"]
[Site "Charlotte"]
[Date "2022.11.26"]
[Round "5.6"]
[White "Hambleton, Aman"]
[Black "Aaron, Deepak"]
[Result "1/2-1/2"]
[ECO "E39"]
[WhiteElo "2437"]
[BlackElo "2305"]
[Annotator "TA"]
[PlyCount "146"]
[EventDate "2022.11.23"]
[EventType "swiss"]
[EventCountry "USA"]
[SourceTitle "playchess.com"]
[Source "ChessBase"]
[SourceQuality "1"]
[TimeControl "5400+30"]

{[%evp 16,146,0,1,7,0,16,12,18,16,16,18,71,77,75,70,67,66,64,46,45,28,28,27,38,46,41,41,29,37,45,30,37,6,29,28,43,0,0,0,0,0,0,0,0,0,39,47,81,18,13,12,13,15,22,13,11,8,8,0,0,0,0,0,0,0,0,0,0,0,8,8,12,12,35,0,0,0,0,0,8,8,8,0,0,0,8,8,8,8,8,8,8,0,0,0,0,0,0,0,0,0,0,0,0,0,0,0,0,0,0,0,0,0,0,0,0,0,0,0,0,0,0,0,0,0,0,0,0,0,0,0,0]} 1. d4 {[%emt 0:00:06]} e6 {[%emt 0:10:38]} 2. c4 {[%emt 0:00:31]} Nf6 {[%emt 0:00:07]} 3. Nc3 {[%emt 0:00:11]} Bb4 {[%emt 0:00:12]} 4. Qc2 {[%emt 0:00:53]} O-O {[%emt 0:00:44]} 5. Nf3 {[%emt 0:00:25]} c5 {[%emt 0:00:31]} 6. dxc5 {[%emt 0:00:20]} Na6 {[%emt 0:04:23][%cal Bb8a6,Ba6c5,Bc5e4][%mdl 32]} 7. g3 {[%emt 0:00:17]} Nxc5 {[%emt 0:01:27]} 8. Bg2 {[%emt 0:00:10]} Nce4 {[%emt 0:00:59]} 9. O-O {[%emt 0:00:16]} Bxc3 {[%emt 0:05:33] E39: Nimzo-Indian: Classical: 4...c5 5 dxc5 0-0.} 10. bxc3 {[%emt 0:00:25]} Qa5 {[%emt 0:03:41] Prevents Ng5.} 11. Nd4 {[%emt 0:13:59]} d5 {[%emt 0:01:28]} 12. cxd5 {[%emt 0:24:41]} exd5 {[%emt 0:00:17]} 13. c4 {[%emt 0:01:03]} Qc5 {[%emt 0:10:42]} (13... Bd7 $11) 14. Bb2 $16 {[%emt 0:04:51]} Qxc4 {[%emt 0:03:54]} 15. Qxc4 {[%emt 0:01:56]} dxc4 {[%emt 0:00:02]} 16. Rfc1 {[%emt 0:00:17][%cal Bf1c1,Bc1c4,Bc4b4,Bb4b3][%mdl 32]} Bd7 {[%emt 0:12:22]} 17. Rxc4 {[%emt 0:07:05]} (17. f3 $5 {[%cal Rf3e4]} Nc5 18. Rxc4 $16) 17... Rac8 {[%emt 0:03:03] [#] Inhibits Rc7.} 18. Rb4 $146 {[%emt 0:12:27]} ({Predecessor:} 18. Rac1 Nd6 19. Rxc8 Rxc8 20. Rxc8+ Bxc8 21. Ba3 Nde4 22. Bb4 b6 23. f3 Nd5 24. Be1 {½-½ (43) Goryachkina,A (2452)-Warakomska,A (2343) Riga 2017}) 18... b5 {[%emt 0:08:33]} 19. Bxe4 {[%emt 0:12:04] This pair of bishops is nice.} a5 {[%emt 0:01:11] [#]} 20. Bxh7+ $1 {[%emt 0:02:11]} Kxh7 {[%emt 0:00:09]} 21. Rb3 {[%emt 0:00:05]} a4 {[%emt 0:00:37]} 22. Rd3 {[%emt 0:01:45]} b4 {[%emt 0:00:49]} 23. f3 {[%emt 0:01:33]} Rc4 {[%emt 0:06:27]} 24. Bc1 {[%emt 0:01:40]} Bc8 {[%emt 0:01:10]} 25. Bg5 {[%emt 0:03:59]} Nd5 {[%emt 0:03:09]} 26. Bd2 {[%emt 0:08:31]} (26. Kf2 $5) 26... Ba6 {[%emt 0:03:44]} 27. Be1 {[%emt 0:00:09]} Rfc8 {[%emt 0:01:18]} 28. Kf2 {[%emt 0:01:40]} R4c5 {[%emt 0:06:23] Inhibits h4.} 29. Rdd1 {[%emt 0:00:26]} Nc3 {[%emt 0:00:55] Prevents Rab1.} 30. Bxc3 {[%emt 0:00:41]} Rxc3 {[%emt 0:00:07]} 31. Rab1 {[%emt 0:00:38]} R8c4 {[%emt 0:01:04]} 32. Rd2 {[%emt 0:00:37]} (32. h4 $16) 32... Rc1 $11 {[%emt 0:04:02]} 33. Rxc1 {[%emt 0:00:24]} Rxc1 {[%emt 0:00:01][%mdl 4096] Endgame KRB-KRN} 34. Rb2 {[%emt 0:00:40]} Rc4 {[%emt 0:03:14]} 35. Ke3 {[%emt 0:00:11]} a3 {[%emt 0:02:21]} 36. Rc2 {[%emt 0:00:45]} Kg6 {[%emt 0:00:41]} 37. h4 {[%emt 0:00:33]} f5 {[%emt 0:01:14]} 38. g4 {[%emt 0:00:26]} fxg4 {[%emt 0:00:14]} 39. fxg4 {[%emt 0:00:03]} Kf6 {[%emt 0:00:00]} 40. Rd2 {[%emt 0:01:01]} Ke5 {[%emt 0:01:04]} 41. Nf3+ {[%emt 0:00:18]} Ke6 {[%emt 0:00:34]} 42. Nd4+ {[%emt 0:00:31]} Kd5 {[%emt 0:00:32]} 43. h5 {[%emt 0:00:39]} Rc3+ {[%emt 0:01:07]} 44. Kf4 {[%emt 0:00:12]} Kc4 {[%emt 0:00:51] Prevents Nb5.} 45. e3 {[%emt 0:00:53] Strongly threatening g5.} (45. Rd1 $5 {[%cal Rg4g5]}) 45... Rc1 {[%emt 0:00:24] The position is equal.} 46. Rh2 {[%emt 0:00:29]} Rf1+ {[%emt 0:00:42]} 47. Ke5 {[%emt 0:00:26]} (47. Ke4 $5 Bb7+ $8 48. Ke5 $11) 47... Kd3 {[%emt 0:00:23]} 48. g5 {[%emt 0:00:29]} Rg1 {[%emt 0:00:44]} 49. Kf4 {[%emt 0:00:31]} Rf1+ {[%emt 0:00:27]} 50. Ke5 {[%emt 0:00:28]} Rg1 {[%emt 0:00:08]} 51. Ne6 {[%emt 0:00:35]} Bc4 {[%emt 0:01:00] And now ...Bxe6 would win.} 52. h6 {[%emt 0:00:28]} gxh6 {[%emt 0:00:14] ...Bxe6 is the strong threat.} 53. gxh6 {[%emt 0:00:14] h7 would kill now.} Rg8 $1 {[%emt 0:00:13][%cal Og8e8] Threatens to win with ...Re8!} 54. h7 {[%emt 0:00:44]} (54. Nc5+ {simplifies} Kc3 55. Na4+ Kd3 56. e4) 54... Rh8 {[%emt 0:00:23]} 55. e4 {[%emt 0:00:35] aiming for Nf4+.} Bxa2 {[%emt 0:00:41][%mdl 64] [#]} 56. Rxa2 {[%emt 0:00:27]} Rxh7 {[%emt 0:00:01] KRN-KR} (56... Kc4 {looks sharper.} 57. Rc2+ Kd3 58. Rc1 Rxh7 59. Nc5+ Kd2) 57. Nf4+ {[%emt 0:00:29]} Kc4 {[%emt 0:00:42]} 58. Nd5 {[%emt 0:00:33]} Ra7 {[%emt 0:00:40] Hoping for ...b3.} 59. Nxb4 {[%emt 0:00:29]} Kxb4 {[%emt 0:00:01] KR-KR} 60. Kd6 {[%emt 0:00:26]} Kb3 {[%emt 0:00:35]} 61. Ra1 {[%emt 0:00:29]} Kb2 {[%emt 0:00:15]} 62. Re1 {[%emt 0:00:32]} Ra6+ {[%emt 0:00:22]} 63. Kd7 {[%emt 0:00:29]} Ra4 {[%emt 0:01:01]} 64. e5 {[%emt 0:00:31]} Rd4+ {[%emt 0:00:11]} 65. Kc7 {[%emt 0:00:13]} Rc4+ {[%emt 0:00:19]} 66. Kd7 {[%emt 0:00:12]} a2 {[%emt 0:00:11][%cal Oc4e4] White must now prevent ...Re4!} 67. e6 {[%emt 0:00:10]} Rd4+ {[%emt 0:00:16]} (67... a1=B 68. e7 Ka3 69. Rxa1+ (69. e8=R Bb2 $14) 69... Kb2 70. Re1 (70. e8=R Kxa1 71. Rh8 Kb2 $11) 70... Rd4+ 71. Ke6 Kc3 72. e8=Q) 68. Ke7 {[%emt 0:01:24]} a1=R {[%emt 0:00:24]} 69. Rxa1 {[%emt 0:00:11]} Kxa1 {[%emt 0:00:04]} 70. Kf7 {[%emt 0:00:08]} Rf4+ {[%emt 0:00:06]} 71. Kg7 {[%emt 0:00:07]} Re4 {[%emt 0:00:05]} 72. Kf7 {[%emt 0:00:06]} Rxe6 {[%emt 0:00:03]} 73. Kxe6 {[%emt 0:00:06]} Kb2 {[%emt 0:01:32] Weighted Error Value: White=0.06 (flawless) /Black=0.04 (flawless)} 1/2-1/2

[Event "US Masters 2022"]
[Site "Charlotte"]
[Date "2022.11.26"]
[Round "5.7"]
[White "Negi, Parimarjan"]
[Black "Neef, Maximilian"]
[Result "1/2-1/2"]
[ECO "C01"]
[WhiteElo "2639"]
[BlackElo "2481"]
[Annotator "TA"]
[PlyCount "135"]
[EventDate "2022.11.23"]
[EventType "swiss"]
[EventCountry "USA"]
[SourceTitle "playchess.com"]
[Source "ChessBase"]
[SourceQuality "1"]
[TimeControl "5400+30"]

{[%evp 11,135,-9,-6,0,-14,-31,-29,-59,-64,-69,-67,-89,-87,-105,-104,-152,-100,-129,-123,-112,-51,-104,-83,-96,-90,-89,-34,-33,-28,-34,-39,-29,-8,-14,-22,-31,-31,-41,0,0,0,0,0,0,147,131,349,222,241,229,245,249,252,246,246,246,254,254,254,254,254,254,254,254,254,247,233,244,239,231,225,198,183,0,205,218,212,159,167,153,156,139,163,135,294,293,271,278,262,239,545,541,510,503,508,471,1160,1158,1134,1119,1104,1091,1020,994,565,306,1376,1350,1143,59,59,59,59,59,59,0,66,66,66,66,67,104,165,191,191,0]} 1. e4 {[%emt 0:03:23]} e6 {[%emt 0:00:07]} 2. d4 {[%emt 0:01:07]} d5 {[%emt 0:00:07]} 3. exd5 {[%emt 0:00:12]} exd5 {[%emt 0:00:07]} 4. Nc3 {[%emt 0:00:04]} c6 {[%emt 0:02:31]} 5. Bd3 {[%emt 0:01:46]} Bd6 {[%emt 0:00:33]} 6. Nge2 {[%emt 0:02:02]} Ne7 {[%emt 0:07:52]} 7. Ng3 {[%emt 0:00:33] C01: French: Exchange Variation.} O-O {[%emt 0:01:42]} 8. O-O {[%emt 0:01:04] [#]} f5 $146 {[%emt 0:07:10] Black wants to play ...f4.} ({Predecessor:} 8... b6 9. Qh5 f5 10. f4 Ba6 11. Bxa6 Nxa6 12. Qe2 Nc7 13. Nd1 Qd7 14. Qd3 Ne6 15. b3 Nxd4 {0-1 (59) Fomin,P-Fedukin,A (1852) Saratov 2013}) 9. Bg5 {[%emt 0:33:55] Black has an edge.} h6 {[%emt 0:11:01]} 10. Bxe7 {[%emt 0:01:44]} Qxe7 {[%emt 0:00:08]} 11. Qh5 {[%emt 0:02:01][%cal Rg3f5]} Qf6 {[%emt 0:05:26]} 12. Rae1 {[%emt 0:02:30]} Na6 {[%emt 0:01:31]} (12... Qxd4 13. Nxf5 (13. Bxf5 Bxg3 14. Bxc8 Bxf2+ 15. Kh1 Nd7 $15) 13... Bxf5 14. Bxf5 $14) 13. Nge2 {[%emt 0:21:23]} (13. Re8 $142) 13... Nc7 {[%emt 0:09:59]} (13... Nb4 $142 {And now ...Nxd3 would win.} 14. f4 Nxd3 15. cxd3 b6) 14. Nb1 {[%emt 0:01:15][%cal Bc3b1,Bb1d2,Bd2f3,Bf3e5][%mdl 32]} Ne6 {[%emt 0:04:46]} 15. c3 {[%emt 0:00:37]} Ng5 {[%emt 0:04:05]} (15... g5 $17 {...Ng7 is the strong threat.} 16. g3 Ng7) 16. f4 {[%emt 0:10:21]} (16. Bc2 $15) 16... Ne4 $17 {[%emt 0:00:18]} 17. Rd1 {[%emt 0:02:19]} Be6 {[%emt 0:05:08]} 18. Nd2 {[%emt 0:00:20]} Rf7 {[%emt 0:01:26]} (18... g5 $17) 19. Nf3 $15 {[%emt 0:00:40]} g6 {[%emt 0:02:23]} 20. Qh3 {[%emt 0:00:17]} (20. Qxh6 $2 Rh7 $19) 20... g5 {[%emt 0:01:41]} 21. Ne5 {[%emt 0:00:04]} Rg7 {[%emt 0:00:28]} (21... g4 $5 {[%cal Rg4h3]} 22. Qh5 Rg7 $11) 22. Qe3 {[%emt 0:03:00]} (22. fxg5 {is more complex.} Rxg5 23. Nf4 Kh7 24. Kh1) 22... Rf8 {[%emt 0:07:04]} (22... g4 {is interesting.} 23. Ng3 Rh7 24. Nh5 Qh4) 23. Bxe4 {[%emt 0:02:06]} dxe4 {[%emt 0:05:05]} 24. b3 {[%emt 0:00:03]} Kh7 {[%emt 0:04:06]} 25. Ng3 {[%emt 0:00:59]} gxf4 {[%emt 0:02:58]} 26. Rxf4 {[%emt 0:00:02]} Qg5 {[%emt 0:03:17]} 27. Rdf1 {[%emt 0:00:29]} h5 {[%emt 0:01:16]} (27... Rd8 $11) 28. Qe2 $16 {[%emt 0:05:33][%cal Og3e4]} Rfg8 $2 {[%emt 0:08:38]} (28... Kg8 $16) 29. Kh1 {[%emt 0:00:41]} (29. Nxh5 Qxg2+ 30. Qxg2 Rxg2+ 31. Kh1 Be7 $19) (29. h4 Qh6 30. Nxf5 Bxf5 31. Rxf5 Bxe5 32. dxe5 (32. Rxe5 Rxg2+ 33. Qxg2 Rxg2+ 34. Kxg2 Qd2+ 35. Kh1 Qe2 $11) 32... Rxg2+ 33. Qxg2 Rxg2+ 34. Kxg2 Qd2+ 35. Kh1 e3 $11) 29... Bxe5 {[%emt 0:02:23]} 30. dxe5 {[%emt 0:00:16]} h4 {[%emt 0:01:04]} 31. Nxf5 {[%emt 0:03:34]} ({Worse is} 31. Nxe4 fxe4 32. Qxe4+ Rg6 $17) 31... Bxf5 {[%emt 0:00:53]} 32. Rxf5 {[%emt 0:00:07][%cal Bf4f5,Bf5h5,Bh5h4,Bh4e4,Be4e2,Be2g2][%mdl 32]} Qxg2+ {[%emt 0:00:36]} 33. Qxg2 {[%emt 0:00:01] The board is on fire.} Rxg2 $18 {[%emt 0:00:01][%mdl 4096] Endgame KRR-KRR} 34. Rh5+ {[%emt 0:00:03]} Kg6 {[%emt 0:00:14]} 35. Rxh4 {[%emt 0:00:17]} Rg5 {[%emt 0:01:13]} 36. Rxe4 {[%emt 0:00:04] Threatens to win with e6.} Re8 {[%emt 0:00:14]} 37. e6 {[%emt 0:01:01]} Re7 {[%emt 0:00:09]} 38. Rg1 {[%emt 0:02:16] Black must now prevent Rxg5+.} Kf5 {[%emt 0:00:33]} 39. Re2 {[%emt 0:00:48]} Rh5 {[%emt 0:00:30]} (39... Rxg1+ $2 40. Kxg1 Kf6 41. Kg2) 40. Rf1+ {[%emt 0:00:52]} Kg6 {[%emt 0:00:11]} 41. Rd1 {[%emt 0:00:35]} Kf6 {[%emt 0:00:16]} 42. Rf1+ {[%emt 0:00:12]} Kg6 $1 {[%emt 0:00:05]} 43. Rg2+ {[%emt 0:00:19]} Kh7 {[%emt 0:00:17]} 44. Re1 {[%emt 0:00:21]} ({Resist} 44. Rf7+ $6 Rxf7 45. exf7 Rf5 $16) 44... Rh6 {[%emt 0:00:30]} 45. Rge2 {[%emt 0:00:31]} Kg7 {[%emt 0:02:58]} 46. a4 {[%emt 0:00:09]} b6 {[%emt 0:00:00]} 47. Rd2 {[%emt 0:01:05]} Rhxe6 $2 {[%emt 0:00:12]} (47... Rh3 $16 {was necessary.}) 48. Rxe6 {[%emt 0:00:05]} Rxe6 $16 {[%emt 0:00:02] KR-KR} 49. Rd7+ {[%emt 0:00:08]} Kf6 {[%emt 0:00:56]} 50. Rxa7 {[%emt 0:00:02]} Re3 $2 {[%emt 0:00:35]} (50... Ke5 51. b4 c5) 51. Ra6 $18 {[%emt 0:01:22]} Rxc3 {[%emt 0:00:04]} 52. Rxb6 {[%emt 0:00:07]} Ke5 {[%emt 0:00:15]} 53. Kg2 {[%emt 0:01:33]} c5 {[%emt 0:00:30]} (53... Rc2+ $142 54. Kg3 c5) 54. a5 {[%emt 0:00:26][%cal Ba4a5,Ba5a6][%mdl 32]} Kf4 {[%emt 0:00:38]} 55. a6 {[%emt 0:00:40]} Rc2+ {[%emt 0:01:03]} 56. Kh3 {[%emt 0:00:26] Hoping for Rb8.} Ra2 {[%emt 0:00:27]} 57. Rc6 {[%emt 0:00:14]} Ra3 {[%emt 0:00:11]} 58. Rxc5 {[%emt 0:00:49] aiming for Rc4+.} Rxb3+ $2 {[%emt 0:00:06]} (58... Rxa6 59. b4 Ra2 60. Rc4+ Kg5 61. Rg4+ Kf5) 59. Kh4 $1 {[%emt 0:00:31]} Ra3 {[%emt 0:00:37] [#] Inhibits Ra5.} 60. Rc6 $2 {[%emt 0:00:01]} (60. Rc4+ $1 $18 Kf5 61. Rc6) 60... Ra5 {[%emt 0:01:18]} 61. h3 {[%emt 0:00:42]} Ra3 $1 {[%emt 0:00:02]} 62. Rb6 {[%emt 0:00:42]} Kf5 $1 {[%emt 0:00:08]} 63. Rc6 {[%emt 0:00:36]} Kf4 $1 {[%emt 0:00:05]} 64. Rf6+ {[%emt 0:00:30]} Ke5 {[%emt 0:00:07]} 65. Rh6 {[%emt 0:00:26]} Kf5 {[%emt 0:00:31]} 66. Rb6 {[%emt 0:00:26]} Kf4 {[%emt 0:00:30]} 67. Rg6 {[%emt 0:00:38]} Kf5 {[%emt 0:00:55] [#]} 68. Rc6 $2 {[%emt 0:00:06] Weighted Error Value: White=0.17 (very precise) /Black=0.25 (precise)} ({White has to play} 68. Rh6 $1 $18) 1/2-1/2